Workbook

Sheet Dashboard
B2: Self Organizing Feature Map to solve Travelling Salesman Problems | P2: www.cs-analytics.de
L4: Travelling Salesman Problem | N4: Select a Travelling Salesman Problem here (defined on worksheet "data")
L5: Number of cities | M5: =Calculation!$H$4 -> 48 | N5: Number of cities in selected TSP
L6: Number of nodes per city | M6: 15 | N6: Define number of nodes in the adaptive ring; recommendation: 5 to 15 nodes per city
L7: Number of adaptive ring nodes | M7: =Calculation!$H$6 -> 720 | N7: Number of nodes in the adaptive ring (= number of cities * nodes per city); limited to max. 3,000 in this workbook
L8: Start algorithm | N8: Click on this icon to start the algorithm
L9: Update screen ev. nth iteration | M9: 100 | N9: Define the interval of updating the screen; the lower the number, the longer the run time and vice versa
L10: Millisecs to wait after each step | M10: 0 | N10: Define a number of milliseconds to wait after each step of the algorithm. Increasing this number allows to watch the algorithm, but considerably increases the runtime
L11: Maximum iterations | M11: 5000 | N11: Select the maximum number of iterations; a high number will slow down the decrease of the learn rate and the radius and thus lead to a longer run time
L12: Stop if max. distance less than | M12: 0.0001 | N12: Threshold for stop of algorithm; if the distances of all cities to their nearest node are less than the defined value, the algorithm will stop regardless the current number of iterations
L13: Current iteration | M13: =Calculation!$H$13 -> 2756 | N13: Number of current iteration
L14: Elapsed time | M14: 00:00:21 | N14: Elapsed run time since start of algorithm
L15: Current radius | M15: =Calculation!$L$6 -> 4 | N15: Current radius, i.e. number of nodes to be adapted left and right of the nearest node; radius decreases over time
L16: Current learning rate | M16: =Calculation!$L$10 -> 0.3510076106 | N16: Current learning rate, i.e. ratio of adapting weights of nodes; learning rate decreases over time
L17: Current length adaptive ring | M17: 5.921286932 | N17: Current length of ring (total sum of euclidean distances along the adaptive ring)
L18: Lenght of tour | M18: 5.921339159 | N18: Length of tour (total sum of euclidean distances along the tour)
M19: No | N19: X | O19: Y
L20: Current city | M20: =Calculation!$H$8 -> 18 | N20: =Calculation!$G$18 -> 0.8726444744 | O20: =Calculation!$H$18 -> 0.5186275795 | P20: No. and coordinates of current city
L21: Current node | M21: =Calculation!$H$9 -> 706 | N21: =Calculation!$K$18 -> 0.8727040793 | O21: =Calculation!$L$18 -> 0.5186619564 | P21: No. and coordinates of current node ("winner")

Sheet Data
B2: Data
B4: Problem | C4: City | D4: X | E4: Y
B5: 10 City Problem | C5: 1 | D5: 94 | E5: 121
B6: 10 City Problem | C6: 2 | D6: 87 | E6: 149
B7: 10 City Problem | C7: 3 | D7: 119 | E7: 73
B8: 10 City Problem | C8: 4 | D8: 42 | E8: 193
B9: 10 City Problem | C9: 5 | D9: 47 | E9: 63
B10: 10 City Problem | C10: 6 | D10: 152 | E10: 2
B11: 10 City Problem | C11: 7 | D11: 164 | E11: 181
B12: 10 City Problem | C12: 8 | D12: 154 | E12: 40
B13: 10 City Problem | C13: 9 | D13: 67 | E13: 132
B14: 10 City Problem | C14: 10 | D14: 53 | E14: 106
B15: 20 City Problem | C15: 1 | D15: 90 | E15: 90
B16: 20 City Problem | C16: 2 | D16: 87 | E16: 199
B17: 20 City Problem | C17: 3 | D17: 4 | E17: 165
B18: 20 City Problem | C18: 4 | D18: 93 | E18: 116
B19: 20 City Problem | C19: 5 | D19: 23 | E19: 45
B20: 20 City Problem | C20: 6 | D20: 186 | E20: 97
B21: 20 City Problem | C21: 7 | D21: 155 | E21: 50
B22: 20 City Problem | C22: 8 | D22: 16 | E22: 112
B23: 20 City Problem | C23: 9 | D23: 95 | E23: 1
B24: 20 City Problem | C24: 10 | D24: 30 | E24: 115
B25: 20 City Problem | C25: 11 | D25: 24 | E25: 98
B26: 20 City Problem | C26: 12 | D26: 35 | E26: 161
B27: 20 City Problem | C27: 13 | D27: 53 | E27: 137
B28: 20 City Problem | C28: 14 | D28: 70 | E28: 61
B29: 20 City Problem | C29: 15 | D29: 5 | E29: 22
B30: 20 City Problem | C30: 16 | D30: 31 | E30: 158
B31: 20 City Problem | C31: 17 | D31: 167 | E31: 143
B32: 20 City Problem | C32: 18 | D32: 7 | E32: 91
B33: 20 City Problem | C33: 19 | D33: 186 | E33: 99
B34: 20 City Problem | C34: 20 | D34: 117 | E34: 170
B35: 29 City Problem | C35: 1 | D35: 1150 | E35: 1760
B36: 29 City Problem | C36: 2 | D36: 630 | E36: 1660
B37: 29 City Problem | C37: 3 | D37: 40 | E37: 2090
B38: 29 City Problem | C38: 4 | D38: 750 | E38: 1100
B39: 29 City Problem | C39: 5 | D39: 750 | E39: 2030
B40: 29 City Problem | C40: 6 | D40: 1030 | E40: 2070
B41: 29 City Problem | C41: 7 | D41: 1650 | E41: 650
B42: 29 City Problem | C42: 8 | D42: 1490 | E42: 1630
B43: 29 City Problem | C43: 9 | D43: 790 | E43: 2260
B44: 29 City Problem | C44: 10 | D44: 710 | E44: 1310
B45: 29 City Problem | C45: 11 | D45: 840 | E45: 550
B46: 29 City Problem | C46: 12 | D46: 1170 | E46: 2300
B47: 29 City Problem | C47: 13 | D47: 970 | E47: 1340
B48: 29 City Problem | C48: 14 | D48: 510 | E48: 700
B49: 29 City Problem | C49: 15 | D49: 750 | E49: 900
B50: 29 City Problem | C50: 16 | D50: 1280 | E50: 1200
B51: 29 City Problem | C51: 17 | D51: 230 | E51: 590
B52: 29 City Problem | C52: 18 | D52: 460 | E52: 860
B53: 29 City Problem | C53: 19 | D53: 1040 | E53: 950
B54: 29 City Problem | C54: 20 | D54: 590 | E54: 1390
B55: 29 City Problem | C55: 21 | D55: 830 | E55: 1770
B56: 29 City Problem | C56: 22 | D56: 490 | E56: 500
B57: 29 City Problem | C57: 23 | D57: 1840 | E57: 1240
B58: 29 City Problem | C58: 24 | D58: 1260 | E58: 1500
B59: 29 City Problem | C59: 25 | D59: 1280 | E59: 790
B60: 29 City Problem | C60: 26 | D60: 490 | E60: 2130
B61: 29 City Problem | C61: 27 | D61: 1460 | E61: 1420
B62: 29 City Problem | C62: 28 | D62: 1260 | E62: 1910
B63: 29 City Problem | C63: 29 | D63: 360 | E63: 1980
B64: 48 City Problem | C64: 1 | D64: -86.2996 | E64: 32.3754
B65: 48 City Problem | C65: 2 | D65: -112.0738 | E65: 33.4483
B66: 48 City Problem | C66: 3 | D66: -92.2789 | E66: 34.7244
B67: 48 City Problem | C67: 4 | D67: -121.4871 | E67: 38.5737
B68: 48 City Problem | C68: 5 | D68: -104.9881 | E68: 39.7551
B69: 48 City Problem | C69: 6 | D69: -72.6732 | E69: 41.7665
B70: 48 City Problem | C70: 7 | D70: -75.5136 | E70: 39.1615
B71: 48 City Problem | C71: 8 | D71: -84.2806 | E71: 30.4382
B72: 48 City Problem | C72: 9 | D72: -84.3897 | E72: 33.7545
B73: 48 City Problem | C73: 10 | D73: -116.2125 | E73: 43.6021
B74: 48 City Problem | C74: 11 | D74: -89.6533 | E74: 39.8018
B75: 48 City Problem | C75: 12 | D75: -86.1563 | E75: 39.767
B76: 48 City Problem | C76: 13 | D76: -93.6203 | E76: 41.5888
B77: 48 City Problem | C77: 14 | D77: -95.6815 | E77: 39.0474
B78: 48 City Problem | C78: 15 | D78: -84.8715 | E78: 38.1894
B79: 48 City Problem | C79: 16 | D79: -91.1882 | E79: 30.4493
B80: 48 City Problem | C80: 17 | D80: -69.7323 | E80: 44.3294
B81: 48 City Problem | C81: 18 | D81: -76.5197 | E81: 38.9693
B82: 48 City Problem | C82: 19 | D82: -71.0568 | E82: 42.3589
B83: 48 City Problem | C83: 20 | D83: -84.5466 | E83: 42.7336
B84: 48 City Problem | C84: 21 | D84: -93.1027 | E84: 44.9446
B85: 48 City Problem | C85: 22 | D85: -90.178 | E85: 32.3122
B86: 48 City Problem | C86: 23 | D86: -92.1941 | E86: 38.5698
B87: 48 City Problem | C87: 24 | D87: -112.0205 | E87: 46.5911
B88: 48 City Problem | C88: 25 | D88: -96.7026 | E88: 40.8136
B89: 48 City Problem | C89: 26 | D89: -119.7519 | E89: 39.1501
B90: 48 City Problem | C90: 27 | D90: -71.5597 | E90: 43.2314
B91: 48 City Problem | C91: 28 | D91: -74.7642 | E91: 40.2202
B92: 48 City Problem | C92: 29 | D92: -105.9381 | E92: 35.6816
B93: 48 City Problem | C93: 30 | D93: -73.7551 | E93: 42.6517
B94: 48 City Problem | C94: 31 | D94: -78.6434 | E94: 35.7797
B95: 48 City Problem | C95: 32 | D95: -100.7694 | E95: 46.8084
B96: 48 City Problem | C96: 33 | D96: -83.0007 | E96: 39.9622
B97: 48 City Problem | C97: 34 | D97: -97.4591 | E97: 35.4931
B98: 48 City Problem | C98: 35 | D98: -123.0272 | E98: 44.937
B99: 48 City Problem | C99: 36 | D99: -76.8849 | E99: 40.274
B100: 48 City Problem | C100: 37 | D100: -71.4087 | E100: 41.827
B101: 48 City Problem | C101: 38 | D101: -81.0353 | E101: 34.0007
B102: 48 City Problem | C102: 39 | D102: -100.3177 | E102: 44.3776
B103: 48 City Problem | C103: 40 | D103: -86.7821 | E103: 36.1589
B104: 48 City Problem | C104: 41 | D104: -97.7452 | E104: 30.2687
B105: 48 City Problem | C105: 42 | D105: -111.8882 | E105: 40.7716
B106: 48 City Problem | C106: 43 | D106: -72.5716 | E106: 44.2627
B107: 48 City Problem | C107: 44 | D107: -77.4339 | E107: 37.5408
B108: 48 City Problem | C108: 45 | D108: -122.9016 | E108: 47.0449
B109: 48 City Problem | C109: 46 | D109: -81.6354 | E109: 38.3533
B110: 48 City Problem | C110: 47 | D110: -89.4007 | E110: 43.0632
B111: 48 City Problem | C111: 48 | D111: -104.8165 | E111: 41.1389
B112: 52 City Problem | C112: 1 | D112: 565 | E112: 575
B113: 52 City Problem | C113: 2 | D113: 25 | E113: 185
B114: 52 City Problem | C114: 3 | D114: 345 | E114: 750
B115: 52 City Problem | C115: 4 | D115: 945 | E115: 685
B116: 52 City Problem | C116: 5 | D116: 845 | E116: 655
B117: 52 City Problem | C117: 6 | D117: 880 | E117: 660
B118: 52 City Problem | C118: 7 | D118: 25 | E118: 230
B119: 52 City Problem | C119: 8 | D119: 525 | E119: 1000
B120: 52 City Problem | C120: 9 | D120: 580 | E120: 1175
B121: 52 City Problem | C121: 10 | D121: 650 | E121: 1130
B122: 52 City Problem | C122: 11 | D122: 1605 | E122: 620
B123: 52 City Problem | C123: 12 | D123: 1220 | E123: 580
B124: 52 City Problem | C124: 13 | D124: 1465 | E124: 200
B125: 52 City Problem | C125: 14 | D125: 1530 | E125: 5
B126: 52 City Problem | C126: 15 | D126: 845 | E126: 680
B127: 52 City Problem | C127: 16 | D127: 725 | E127: 370
B128: 52 City Problem | C128: 17 | D128: 145 | E128: 665
B129: 52 City Problem | C129: 18 | D129: 415 | E129: 635
B130: 52 City Problem | C130: 19 | D130: 510 | E130: 875
B131: 52 City Problem | C131: 20 | D131: 560 | E131: 365
B132: 52 City Problem | C132: 21 | D132: 300 | E132: 465
B133: 52 City Problem | C133: 22 | D133: 520 | E133: 585
B134: 52 City Problem | C134: 23 | D134: 480 | E134: 415
B135: 52 City Problem | C135: 24 | D135: 835 | E135: 625
B136: 52 City Problem | C136: 25 | D136: 975 | E136: 580
B137: 52 City Problem | C137: 26 | D137: 1215 | E137: 245
B138: 52 City Problem | C138: 27 | D138: 1320 | E138: 315
B139: 52 City Problem | C139: 28 | D139: 1250 | E139: 400
B140: 52 City Problem | C140: 29 | D140: 660 | E140: 180
B141: 52 City Problem | C141: 30 | D141: 410 | E141: 250
B142: 52 City Problem | C142: 31 | D142: 420 | E142: 555
B143: 52 City Problem | C143: 32 | D143: 575 | E143: 665
B144: 52 City Problem | C144: 33 | D144: 1150 | E144: 1160
B145: 52 City Problem | C145: 34 | D145: 700 | E145: 580
B146: 52 City Problem | C146: 35 | D146: 685 | E146: 595
B147: 52 City Problem | C147: 36 | D147: 685 | E147: 610
B148: 52 City Problem | C148: 37 | D148: 770 | E148: 610
B149: 52 City Problem | C149: 38 | D149: 795 | E149: 645
B150: 52 City Problem | C150: 39 | D150: 720 | E150: 635
B151: 52 City Problem | C151: 40 | D151: 760 | E151: 650
B152: 52 City Problem | C152: 41 | D152: 475 | E152: 960
B153: 52 City Problem | C153: 42 | D153: 95 | E153: 260
B154: 52 City Problem | C154: 43 | D154: 875 | E154: 920
B155: 52 City Problem | C155: 44 | D155: 700 | E155: 500
B156: 52 City Problem | C156: 45 | D156: 555 | E156: 815
B157: 52 City Problem | C157: 46 | D157: 830 | E157: 485
B158: 52 City Problem | C158: 47 | D158: 1170 | E158: 65
B159: 52 City Problem | C159: 48 | D159: 830 | E159: 610
B160: 52 City Problem | C160: 49 | D160: 605 | E160: 625
B161: 52 City Problem | C161: 50 | D161: 595 | E161: 360
B162: 52 City Problem | C162: 51 | D162: 1340 | E162: 725
B163: 52 City Problem | C163: 52 | D163: 1740 | E163: 245
B164: 70 City Problem | C164: 1 | D164: 64 | E164: 96
B165: 70 City Problem | C165: 2 | D165: 80 | E165: 39
B166: 70 City Problem | C166: 3 | D166: 69 | E166: 23
B167: 70 City Problem | C167: 4 | D167: 72 | E167: 42
B168: 70 City Problem | C168: 5 | D168: 48 | E168: 67
B169: 70 City Problem | C169: 6 | D169: 58 | E169: 43
B170: 70 City Problem | C170: 7 | D170: 81 | E170: 34
B171: 70 City Problem | C171: 8 | D171: 79 | E171: 17
B172: 70 City Problem | C172: 9 | D172: 30 | E172: 23
B173: 70 City Problem | C173: 10 | D173: 42 | E173: 67
B174: 70 City Problem | C174: 11 | D174: 7 | E174: 76
B175: 70 City Problem | C175: 12 | D175: 29 | E175: 51
B176: 70 City Problem | C176: 13 | D176: 78 | E176: 92
B177: 70 City Problem | C177: 14 | D177: 64 | E177: 8
B178: 70 City Problem | C178: 15 | D178: 95 | E178: 57
B179: 70 City Problem | C179: 16 | D179: 57 | E179: 91
B180: 70 City Problem | C180: 17 | D180: 40 | E180: 35
B181: 70 City Problem | C181: 18 | D181: 68 | E181: 40
B182: 70 City Problem | C182: 19 | D182: 92 | E182: 34
B183: 70 City Problem | C183: 20 | D183: 62 | E183: 1
B184: 70 City Problem | C184: 21 | D184: 28 | E184: 43
B185: 70 City Problem | C185: 22 | D185: 76 | E185: 73
B186: 70 City Problem | C186: 23 | D186: 67 | E186: 88
B187: 70 City Problem | C187: 24 | D187: 93 | E187: 54
B188: 70 City Problem | C188: 25 | D188: 6 | E188: 8
B189: 70 City Problem | C189: 26 | D189: 87 | E189: 18
B190: 70 City Problem | C190: 27 | D190: 30 | E190: 9
B191: 70 City Problem | C191: 28 | D191: 77 | E191: 13
B192: 70 City Problem | C192: 29 | D192: 78 | E192: 94
B193: 70 City Problem | C193: 30 | D193: 55 | E193: 3
B194: 70 City Problem | C194: 31 | D194: 82 | E194: 88
B195: 70 City Problem | C195: 32 | D195: 73 | E195: 28
B196: 70 City Problem | C196: 33 | D196: 20 | E196: 55
B197: 70 City Problem | C197: 34 | D197: 27 | E197: 43
B198: 70 City Problem | C198: 35 | D198: 95 | E198: 86
B199: 70 City Problem | C199: 36 | D199: 67 | E199: 99
B200: 70 City Problem | C200: 37 | D200: 48 | E200: 83
B201: 70 City Problem | C201: 38 | D201: 75 | E201: 81
B202: 70 City Problem | C202: 39 | D202: 8 | E202: 19
... 797 more rows

Sheet Calculation
B2: Calculation
B4: List of problems | G4: Number of cities | H4: =COUNTIF(tab_data[Problem],$L$13) -> 48 | K4: Min radius | L4: 1
B5: 10 City Problem | G5: Nodes per city | H5: =Dashboard!$M$6 -> 15 | K5: Max radius | L5: 30
B6: 20 City Problem | G6: Nodes in adaptive ring | H6: =MIN($N$3026,H5*H4) -> 720 | K6: Current radius | L6: 4
B7: 29 City Problem
B8: 48 City Problem | G8: Current city | H8: 18 | K8: Min learn rate | L8: 0.2
B9: 52 City Problem | G9: Current node | H9: 706 | K9: Max learn rate | L9: 0.7
B10: 70 City Problem | K10: Current learn rate | L10: 0.3510076106
B11: 100 City Problem
B12: 230 City Problem | G12: Max iterations | H12: =Dashboard!$M$11 -> 5000 | K12: Selected problem | L12: 4
B13: 436 City Problem | G13: Current iteration | H13: 2756 | K13: Selected problem | L13: =INDEX($B$5:$B$13,L12) -> 48 City Problem
K14: Starting data row | L14: =MATCH(L13,tab_data[Problem],0)-1 -> 59
G16: Current City | K16: Current Node
G17: X | H17: Y | K17: X | L17: Y
G18: 0.8726444744 | H18: 0.5186275795 | K18: 0.8727040793 | L18: 0.5186619564
F20: Max | G20: =MAX(OFFSET($D$26,1,0,$H$4,1)) -> -69.7323 | H20: =MAX(OFFSET($E$26,1,0,$H$4,1)) -> 47.0449
F21: Min | G21: =MIN(OFFSET($D$26,1,0,$H$4,1)) -> -123.0272 | H21: =MIN(OFFSET($E$26,1,0,$H$4,1)) -> 30.2687
F22: Range | G22: =G20-G21 -> 53.2949 | H22: =H20-H21 -> 16.7762
B24: Travelling Salesman Problem | J24: Best Tour | N24: Adaptive Ring | R24: Iteration Monitor
B26: No. | C26: Relevant | D26: X | E26: Y | F26: X normalized | G26: Y normalized | H26: Count | J26: No. | K26: X | L26: Y | N26: No. | O26: X | P26: Y | R26: Iteration | S26: Ring Length | T26: Learn Rate | U26: Radius
B27: 1 | C27: =B27<=myMaxCities -> TRUE | D27: =IF($C27,INDEX(tab_data[X],$L$14+$B27),NA()) -> -86.2996 | E27: =IF($C27,INDEX(tab_data[Y],$L$14+$B27),NA()) -> 32.3754 | F27: =(D27-$G$21)/$G$22 -> 0.6891391109 | G27: =(E27-$H$21)/$H$22 -> 0.1255767099 | H27: 45 | J27: 36 | K27: =INDEX($F$27:$F$526,$J27) -> 0.8657920364 | L27: =INDEX($G$27:$G$526,$J27) -> 0.5963984693 | N27: 1 | O27: 0.8657921581 | P27: 0.59639816 | R27: 1 | S27: 1.570791343 | T27: 0.6998246312 | U27: 29
B28: 2 | C28: TRUE | D28: =IF($C28,INDEX(tab_data[X],$L$14+$B28),NA()) -> -112.0738 | E28: =IF($C28,INDEX(tab_data[Y],$L$14+$B28),NA()) -> 33.4483 | F28: 0.205524356 | G28: 0.1895304062 | H28: 68 | J28: 28 | K28: =INDEX($F$27:$F$526,$J28) -> 0.9055838364 | L28: =INDEX($G$27:$G$526,$J28) -> 0.5931915452 | N28: 2 | O28: 0.8657921274 | P28: 0.5963984091 | R28: 2 | S28: 1.82279275 | T28: 0.6996492743 | U28: 29
B29: 3 | C29: TRUE | D29: =IF($C29,INDEX(tab_data[X],$L$14+$B29),NA()) -> -92.2789 | E29: =IF($C29,INDEX(tab_data[Y],$L$14+$B29),NA()) -> 34.7244 | F29: 0.576946387 | G29: 0.2655964998 | H29: 61 | J29: 6 | K29: 0.9448183597 | L29: 0.6853637892 | N29: 3 | O29: 0.8657922767 | P29: 0.59639842 | R29: 3 | S29: 1.826244264 | T29: 0.6994740367 | U29: 29
B30: 4 | C30: TRUE | D30: =IF($C30,INDEX(tab_data[X],$L$14+$B30),NA()) -> -121.4871 | E30: =IF($C30,INDEX(tab_data[Y],$L$14+$B30),NA()) -> 38.5737 | F30: 0.0288976994 | G30: 0.495046554 | H30: 56 | J30: 37 | K30: 0.9685448326 | L30: 0.6889700886 | N30: 4 | O30: 0.8657986735 | P30: 0.5963979208 | R30: 4 | S30: 1.954656419 | T30: 0.699298799 | U30: 29
B31: 5 | C31: TRUE | D31: =IF($C31,INDEX(tab_data[X],$L$14+$B31),NA()) -> -104.9881 | E31: =IF($C31,INDEX(tab_data[Y],$L$14+$B31),NA()) -> 39.7551 | F31: 0.33847704 | G31: 0.565467746 | H31: 53 | J31: 19 | K31: 0.9751477158 | L31: 0.7206757192 | N31: 5 | O31: 0.8661009165 | P31: 0.5963735758 | R31: 5 | S31: 2.038536339 | T31: 0.699123621 | U31: 29
B32: 6 | C32: TRUE | D32: =IF($C32,INDEX(tab_data[X],$L$14+$B32),NA()) -> -72.6732 | E32: =IF($C32,INDEX(tab_data[Y],$L$14+$B32),NA()) -> 41.7665 | F32: 0.9448183597 | G32: 0.6853637892 | H32: 69 | J32: 30 | K32: 0.9245181059 | L32: 0.7381290161 | N32: 6 | O32: 0.8691023678 | P32: 0.5961316811 | R32: 6 | S32: 2.486073099 | T32: 0.6989484429 | U32: 29
B33: 7 | C33: TRUE | D33: =IF($C33,INDEX(tab_data[X],$L$14+$B33),NA()) -> -75.5136 | E33: =IF($C33,INDEX(tab_data[Y],$L$14+$B33),NA()) -> 39.1615 | F33: 0.8915224534 | G33: 0.5300842861 | H33: 47 | J33: 27 | K33: 0.9657115409 | L33: 0.7726839213 | N33: 7 | O33: 0.8957382533 | P33: 0.5939850262 | R33: 7 | S33: 2.797837328 | T33: 0.6987733841 | U33: 29
B34: 8 | C34: TRUE | D34: =IF($C34,INDEX(tab_data[X],$L$14+$B34),NA()) -> -84.2806 | E34: =IF($C34,INDEX(tab_data[Y],$L$14+$B34),NA()) -> 30.4382 | F34: 0.7270226607 | G34: 0.01010359915 | H34: 65 | J34: 17 | K34: 1 | L34: 0.8381337848 | N34: 8 | O34: 0.9047057911 | P34: 0.5932623091 | R34: 8 | S34: 2.957758191 | T34: 0.6985983253 | U34: 29
B35: 9 | C35: TRUE | D35: =IF($C35,INDEX(tab_data[X],$L$14+$B35),NA()) -> -84.3897 | E35: =IF($C35,INDEX(tab_data[Y],$L$14+$B35),NA()) -> 33.7545 | F35: 0.7249755605 | G35: 0.2077824537 | H35: 50 | J35: 43 | K35: 0.9467247335 | L35: 0.8341579142 | N35: 9 | O35: 0.9055059846 | P35: 0.5931978195 | R35: 9 | S35: 3.041473261 | T35: 0.6984232664 | U35: 29
B36: 10 | C36: TRUE | D36: =IF($C36,INDEX(tab_data[X],$L$14+$B36),NA()) -> -116.2125 | E36: =IF($C36,INDEX(tab_data[Y],$L$14+$B36),NA()) -> 43.6021 | F36: 0.1278677697 | G36: 0.7947807012 | H36: 54 | J36: 20 | K36: 0.722031564 | L36: 0.7430109322 | N36: 10 | O36: 0.9055805433 | P36: 0.593191812 | R36: 10 | S36: 3.264583326 | T36: 0.6982483268 | U36: 29
B37: 11 | C37: TRUE | D37: =IF($C37,INDEX(tab_data[X],$L$14+$B37),NA()) -> -89.6533 | E37: =IF($C37,INDEX(tab_data[Y],$L$14+$B37),NA()) -> 39.8018 | F37: 0.6262118889 | G37: 0.5682514515 | H37: 55 | J37: 47 | K37: 0.6309515545 | L37: 0.7626578129 | N37: 11 | O37: 0.9055830833 | P37: 0.5931916322 | R37: 11 | S37: 3.226220865 | T37: 0.6980733871 | U37: 29
B38: 12 | C38: TRUE | D38: =IF($C38,INDEX(tab_data[X],$L$14+$B38),NA()) -> -86.1563 | E38: =IF($C38,INDEX(tab_data[Y],$L$14+$B38),NA()) -> 39.767 | F38: 0.6918279235 | G38: 0.5661770842 | H38: 50 | J38: 13 | K38: 0.5517769993 | L38: 0.6747714023 | N38: 12 | O38: 0.9055838965 | P38: 0.5931931945 | R38: 12 | S38: 3.420917192 | T38: 0.6978985071 | U38: 29
B39: 13 | C39: TRUE | D39: =IF($C39,INDEX(tab_data[X],$L$14+$B39),NA()) -> -93.6203 | E39: =IF($C39,INDEX(tab_data[Y],$L$14+$B39),NA()) -> 41.5888 | F39: 0.5517769993 | G39: 0.6747714023 | H39: 62 | J39: 25 | K39: 0.4939421971 | L39: 0.6285630834 | N39: 13 | O39: 0.9056246392 | P39: 0.5932878022 | R39: 13 | S39: 3.464197115 | T39: 0.6977236867 | U39: 29
B40: 14 | C40: TRUE | D40: =IF($C40,INDEX(tab_data[X],$L$14+$B40),NA()) -> -95.6815 | E40: =IF($C40,INDEX(tab_data[Y],$L$14+$B40),NA()) -> 39.0474 | F40: 0.5131016289 | G40: 0.5232829842 | H40: 69 | J40: 21 | K40: 0.561488998 | L40: 0.874804783 | N40: 14 | O40: 0.906896505 | P40: 0.5962754049 | R40: 14 | S40: 3.464965641 | T40: 0.6975488663 | U40: 29
B41: 15 | C41: TRUE | D41: =IF($C41,INDEX(tab_data[X],$L$14+$B41),NA()) -> -84.8715 | E41: =IF($C41,INDEX(tab_data[Y],$L$14+$B41),NA()) -> 38.1894 | F41: 0.7159352959 | G41: 0.4721391018 | H41: 67 | J41: 39 | K41: 0.4261101907 | L41: 0.8410069026 | N41: 15 | O41: 0.9117192772 | P41: 0.6076053156 | R41: 15 | S41: 3.632618768 | T41: 0.6973741055 | U41: 29
B42: 16 | C42: TRUE | D42: =IF($C42,INDEX(tab_data[X],$L$14+$B42),NA()) -> -91.1882 | E42: =IF($C42,INDEX(tab_data[Y],$L$14+$B42),NA()) -> 30.4493 | F42: 0.5974117598 | G42: 0.01076525077 | H42: 49 | J42: 32 | K42: 0.417634708 | L42: 0.9859026478 | N42: 16 | O42: 0.9357733177 | P42: 0.6641146011 | R42: 16 | S42: 3.625714349 | T42: 0.6971994042 | U42: 29
B43: 17 | C43: TRUE | D43: =IF($C43,INDEX(tab_data[X],$L$14+$B43),NA()) -> -69.7323 | E43: =IF($C43,INDEX(tab_data[Y],$L$14+$B43),NA()) -> 44.3294 | F43: 1 | G43: 0.8381337848 | H43: 65 | J43: 24 | K43: 0.2065244517 | L43: 0.9729497741 | N43: 17 | O43: 0.9442825998 | P43: 0.6841051486 | R43: 17 | S43: 3.62880226 | T43: 0.6970247626 | U43: 29
B44: 18 | C44: TRUE | D44: =IF($C44,INDEX(tab_data[X],$L$14+$B44),NA()) -> -76.5197 | E44: =IF($C44,INDEX(tab_data[Y],$L$14+$B44),NA()) -> 38.9693 | F44: 0.8726444744 | G44: 0.5186275795 | H44: 50 | J44: 45 | K44: 0.002356698296 | L44: 1 | N44: 18 | O44: 0.9448019581 | P44: 0.6853252574 | R44: 18 | S44: 3.598314602 | T44: 0.696850121 | U44: 29
B45: 19 | C45: TRUE | D45: =IF($C45,INDEX(tab_data[X],$L$14+$B45),NA()) -> -71.0568 | E45: =IF($C45,INDEX(tab_data[Y],$L$14+$B45),NA()) -> 42.3589 | F45: 0.9751477158 | G45: 0.7206757192 | H45: 57 | J45: 35 | K45: 0 | L45: 0.8743517602 | N45: 19 | O45: 0.9448162472 | P45: 0.6853588156 | R45: 19 | S45: 3.590989292 | T45: 0.696675539 | U45: 29
B46: 20 | C46: TRUE | D46: =IF($C46,INDEX(tab_data[X],$L$14+$B46),NA()) -> -84.5466 | E46: =IF($C46,INDEX(tab_data[Y],$L$14+$B46),NA()) -> 42.7336 | F46: 0.722031564 | G46: 0.7430109322 | H46: 59 | J46: 10 | K46: 0.1278677697 | L46: 0.7947807012 | N46: 20 | O46: 0.9448180072 | P46: 0.6853629399 | R46: 20 | S46: 3.584794381 | T46: 0.6965010166 | U46: 29
B47: 21 | C47: TRUE | D47: =IF($C47,INDEX(tab_data[X],$L$14+$B47),NA()) -> -93.1027 | E47: =IF($C47,INDEX(tab_data[Y],$L$14+$B47),NA()) -> 44.9446 | F47: 0.561488998 | G47: 0.874804783 | H47: 64 | J47: 42 | K47: 0.2090068656 | L47: 0.6260595367 | N47: 21 | O47: 0.944820489 | P47: 0.6853641128 | R47: 21 | S47: 3.563508284 | T47: 0.6963265538 | U47: 29
B48: 22 | C48: TRUE | D48: =IF($C48,INDEX(tab_data[X],$L$14+$B48),NA()) -> -90.178 | E48: =IF($C48,INDEX(tab_data[Y],$L$14+$B48),NA()) -> 32.3122 | F48: 0.6163666692 | G48: 0.1218094682 | H48: 59 | J48: 48 | K48: 0.3416968603 | L48: 0.6479536486 | N48: 22 | O48: 0.9448325474 | P48: 0.6853659456 | R48: 22 | S48: 3.781376743 | T48: 0.696152091 | U48: 29
B49: 23 | C49: TRUE | D49: =IF($C49,INDEX(tab_data[X],$L$14+$B49),NA()) -> -92.1941 | E49: =IF($C49,INDEX(tab_data[Y],$L$14+$B49),NA()) -> 38.5698 | F49: 0.5785375336 | G49: 0.4948140819 | H49: 53 | J49: 5 | K49: 0.33847704 | L49: 0.565467746 | N49: 23 | O49: 0.9449187025 | P49: 0.6853790407 | R49: 23 | S49: 3.800242343 | T49: 0.6959776878 | U49: 29
B50: 24 | C50: TRUE | D50: =IF($C50,INDEX(tab_data[X],$L$14+$B50),NA()) -> -112.0205 | E50: =IF($C50,INDEX(tab_data[Y],$L$14+$B50),NA()) -> 46.5911 | F50: 0.2065244517 | G50: 0.9729497741 | H50: 60 | J50: 26 | K50: 0.06145616185 | L50: 0.529404752 | N50: 24 | O50: 0.954965898 | P50: 0.6869061618 | R50: 24 | S50: 3.816927142 | T50: 0.6958033442 | U50: 29
B51: 25 | C51: TRUE | D51: =IF($C51,INDEX(tab_data[X],$L$14+$B51),NA()) -> -96.7026 | E51: =IF($C51,INDEX(tab_data[Y],$L$14+$B51),NA()) -> 40.8136 | F51: 0.4939421971 | G51: 0.6285630834 | H51: 58 | J51: 4 | K51: 0.0288976994 | L51: 0.495046554 | N51: 25 | O51: 0.9645694054 | P51: 0.6883658446 | R51: 25 | S51: 3.824371522 | T51: 0.6956290007 | U51: 29
B52: 26 | C52: TRUE | D52: =IF($C52,INDEX(tab_data[X],$L$14+$B52),NA()) -> -119.7519 | E52: =IF($C52,INDEX(tab_data[Y],$L$14+$B52),NA()) -> 39.1501 | F52: 0.06145616185 | G52: 0.529404752 | H52: 62 | J52: 29 | K52: 0.3206516946 | L52: 0.3226535211 | N52: 26 | O52: 0.9677903528 | P52: 0.6888554118 | R52: 26 | S52: 3.833867166 | T52: 0.6954547763 | U52: 29
B53: 27 | C53: TRUE | D53: =IF($C53,INDEX(tab_data[X],$L$14+$B53),NA()) -> -71.5597 | E53: =IF($C53,INDEX(tab_data[Y],$L$14+$B53),NA()) -> 43.2314 | F53: 0.9657115409 | G53: 0.7726839213 | H53: 74 | J53: 2 | K53: 0.205524356 | L53: 0.1895304062 | N53: 27 | O53: 0.9685238208 | P53: 0.6889668966 | R53: 27 | S53: 3.887968157 | T53: 0.6952805519 | U53: 29
B54: 28 | C54: TRUE | D54: =IF($C54,INDEX(tab_data[X],$L$14+$B54),NA()) -> -74.7642 | E54: =IF($C54,INDEX(tab_data[Y],$L$14+$B54),NA()) -> 40.2202 | F54: 0.9055838364 | G54: 0.5931915452 | H54: 63 | J54: 34 | K54: 0.4797475931 | L54: 0.3114173651 | N54: 28 | O54: 0.9685439392 | P54: 0.6889699559 | R54: 28 | S54: 3.940746394 | T54: 0.6951063275 | U54: 29
B55: 29 | C55: TRUE | D55: =IF($C55,INDEX(tab_data[X],$L$14+$B55),NA()) -> -105.9381 | E55: =IF($C55,INDEX(tab_data[Y],$L$14+$B55),NA()) -> 35.6816 | F55: 0.3206516946 | G55: 0.3226535211 | H55: 42 | J55: 3 | K55: 0.576946387 | L55: 0.2655964998 | N55: 29 | O55: 0.9685441732 | P55: 0.6889700148 | R55: 29 | S55: 3.936465791 | T55: 0.6949322224 | U55: 29
B56: 30 | C56: TRUE | D56: =IF($C56,INDEX(tab_data[X],$L$14+$B56),NA()) -> -73.7551 | E56: =IF($C56,INDEX(tab_data[Y],$L$14+$B56),NA()) -> 42.6517 | F56: 0.9245181059 | G56: 0.7381290161 | H56: 49 | J56: 22 | K56: 0.6163666692 | L56: 0.1218094682 | N56: 30 | O56: 0.9685450751 | P56: 0.688971386 | R56: 30 | S56: 3.958828969 | T56: 0.6947581172 | U56: 29
B57: 31 | C57: TRUE | D57: =IF($C57,INDEX(tab_data[X],$L$14+$B57),NA()) -> -78.6434 | E57: =IF($C57,INDEX(tab_data[Y],$L$14+$B57),NA()) -> 35.7797 | F57: 0.8327963839 | G57: 0.3285010908 | H57: 48 | J57: 41 | K57: 0.4743793496 | L57: 0 | N57: 31 | O57: 0.9685504298 | P57: 0.6889969653 | R57: 31 | S57: 3.963319734 | T57: 0.6945840716 | U57: 29
B58: 32 | C58: TRUE | D58: =IF($C58,INDEX(tab_data[X],$L$14+$B58),NA()) -> -100.7694 | E58: =IF($C58,INDEX(tab_data[Y],$L$14+$B58),NA()) -> 46.8084 | F58: 0.417634708 | G58: 0.9859026478 | H58: 58 | J58: 16 | K58: 0.5974117598 | L58: 0.01076525077 | N58: 32 | O58: 0.9687021118 | P58: 0.6897253096 | R58: 32 | S58: 3.962943311 | T58: 0.6944100261 | U58: 29
B59: 33 | C59: =B59<=myMaxCities -> TRUE | D59: =IF($C59,INDEX(tab_data[X],$L$14+$B59),NA()) -> -83.0007 | E59: =IF($C59,INDEX(tab_data[Y],$L$14+$B59),NA()) -> 39.9622 | F59: 0.7510380918 | G59: 0.5778126155 | H59: 55 | J59: 8 | K59: 0.7270226607 | L59: 0.01010359915 | N59: 33 | O59: 0.9696202424 | P59: 0.6941339758 | R59: 33 | S59: 4.008828666 | T59: 0.6942360997 | U59: 29
B60: 34 | C60: TRUE | D60: =IF($C60,INDEX(tab_data[X],$L$14+$B60),NA()) -> -97.4591 | E60: =IF($C60,INDEX(tab_data[Y],$L$14+$B60),NA()) -> 35.4931 | F60: 0.4797475931 | G60: 0.3114173651 | H60: 51 | J60: 1 | K60: 0.6891391109 | L60: 0.1255767099 | N60: 34 | O60: 0.9728993338 | P60: 0.7098794705 | R60: 34 | S60: 4.011397539 | T60: 0.6940621734 | U60: 29
B61: 35 | C61: TRUE | D61: =IF($C61,INDEX(tab_data[X],$L$14+$B61),NA()) -> -123.0272 | E61: =IF($C61,INDEX(tab_data[Y],$L$14+$B61),NA()) -> 44.937 | F61: 0 | G61: 0.8743517602 | H61: 53 | J61: 9 | K61: 0.7249755605 | L61: 0.2077824537 | N61: 35 | O61: 0.9750510754 | P61: 0.720211675 | R61: 35 | S61: 4.163770021 | T61: 0.6938883066 | U61: 29
B62: 36 | C62: TRUE | D62: =IF($C62,INDEX(tab_data[X],$L$14+$B62),NA()) -> -76.8849 | E62: =IF($C62,INDEX(tab_data[Y],$L$14+$B62),NA()) -> 40.274 | F62: 0.8657920364 | G62: 0.5963984693 | H62: 65 | J62: 38 | K62: 0.7879159169 | L62: 0.222458006 | N62: 36 | O62: 0.9751292033 | P62: 0.7205868318 | R62: 36 | S62: 4.045340062 | T62: 0.6937144399 | U62: 29
B63: 37 | C63: TRUE | D63: =IF($C63,INDEX(tab_data[X],$L$14+$B63),NA()) -> -71.4087 | E63: =IF($C63,INDEX(tab_data[Y],$L$14+$B63),NA()) -> 41.827 | F63: 0.9685448326 | G63: 0.6889700886 | H63: 55 | J63: 31 | K63: 0.8327963839 | L63: 0.3285010908 | N63: 37 | O63: 0.9751471582 | P63: 0.7206730568 | R63: 37 | S63: 4.049284976 | T63: 0.6935406923 | U63: 29
B64: 38 | C64: TRUE | D64: =IF($C64,INDEX(tab_data[X],$L$14+$B64),NA()) -> -81.0353 | E64: =IF($C64,INDEX(tab_data[Y],$L$14+$B64),NA()) -> 34.0007 | F64: 0.7879159169 | G64: 0.222458006 | H64: 63 | J64: 40 | K64: 0.6800857118 | L64: 0.351104541 | N64: 38 | O64: 0.9751476536 | P64: 0.7206755444 | R64: 38 | S64: 3.983708283 | T64: 0.6933669448 | U64: 29
B65: 39 | C65: TRUE | D65: =IF($C65,INDEX(tab_data[X],$L$14+$B65),NA()) -> -100.3177 | E65: =IF($C65,INDEX(tab_data[Y],$L$14+$B65),NA()) -> 44.3776 | F65: 0.4261101907 | G65: 0.8410069026 | H65: 46 | J65: 23 | K65: 0.5785375336 | L65: 0.4948140819 | N65: 39 | O65: 0.9751474807 | P65: 0.7206757959 | R65: 39 | S65: 4.06072283 | T65: 0.6931931973 | U65: 29
B66: 40 | C66: TRUE | D66: =IF($C66,INDEX(tab_data[X],$L$14+$B66),NA()) -> -86.7821 | E66: =IF($C66,INDEX(tab_data[Y],$L$14+$B66),NA()) -> 36.1589 | F66: 0.6800857118 | G66: 0.351104541 | H66: 56 | J66: 14 | K66: 0.5131016289 | L66: 0.5232829842 | N66: 40 | O66: 0.9751465643 | P66: 0.7206761123 | R66: 40 | S66: 4.04671734 | T66: 0.6930195689 | U66: 29
B67: 41 | C67: TRUE | D67: =IF($C67,INDEX(tab_data[X],$L$14+$B67),NA()) -> -97.7452 | E67: =IF($C67,INDEX(tab_data[Y],$L$14+$B67),NA()) -> 30.2687 | F67: 0.4743793496 | G67: 0 | H67: 54 | J67: 11 | K67: 0.6262118889 | L67: 0.5682514515 | N67: 41 | O67: 0.9747609165 | P67: 0.720809058 | R67: 41 | S67: 4.092511571 | T67: 0.6928459406 | U67: 29
B68: 42 | C68: TRUE | D68: =IF($C68,INDEX(tab_data[X],$L$14+$B68),NA()) -> -111.8882 | E68: =IF($C68,INDEX(tab_data[Y],$L$14+$B68),NA()) -> 40.7716 | F68: 0.2090068656 | G68: 0.6260595367 | H68: 58 | J68: 12 | K68: 0.6918279235 | L68: 0.5661770842 | N68: 42 | O68: 0.9725963415 | P68: 0.7215552417 | R68: 42 | S68: 3.997820502 | T68: 0.6926723719 | U68: 29
B69: 43 | C69: TRUE | D69: =IF($C69,INDEX(tab_data[X],$L$14+$B69),NA()) -> -72.5716 | E69: =IF($C69,INDEX(tab_data[Y],$L$14+$B69),NA()) -> 44.2627 | F69: 0.9467247335 | G69: 0.8341579142 | H69: 63 | J69: 33 | K69: 0.7510380918 | L69: 0.5778126155 | N69: 43 | O69: 0.9476755552 | P69: 0.7301460622 | R69: 43 | S69: 4.004586895 | T69: 0.6924988627 | U69: 29
B70: 44 | C70: TRUE | D70: =IF($C70,INDEX(tab_data[X],$L$14+$B70),NA()) -> -77.4339 | E70: =IF($C70,INDEX(tab_data[Y],$L$14+$B70),NA()) -> 37.5408 | F70: 0.8554908631 | G70: 0.4334771879 | H70: 72 | J70: 15 | K70: 0.7159352959 | L70: 0.4721391018 | N70: 44 | O70: 0.9257478804 | P70: 0.737705082 | R70: 44 | S70: 4.02623056 | T70: 0.6923253536 | U70: 29
B71: 45 | C71: TRUE | D71: =IF($C71,INDEX(tab_data[X],$L$14+$B71),NA()) -> -122.9016 | E71: =IF($C71,INDEX(tab_data[Y],$L$14+$B71),NA()) -> 47.0449 | F71: 0.002356698296 | G71: 1 | H71: 53 | J71: 46 | K71: 0.7766559277 | L71: 0.4819088947 | N71: 45 | O71: 0.924537471 | P71: 0.7381223405 | R71: 45 | S71: 4.022631427 | T71: 0.6921519041 | U71: 29
B72: 46 | C72: TRUE | D72: =IF($C72,INDEX(tab_data[X],$L$14+$B72),NA()) -> -81.6354 | E72: =IF($C72,INDEX(tab_data[Y],$L$14+$B72),NA()) -> 38.3533 | F72: 0.7766559277 | G72: 0.4819088947 | H72: 56 | J72: 44 | K72: 0.8554908631 | L72: 0.4334771879 | N72: 46 | O72: 0.9245189315 | P72: 0.7381287328 | R72: 46 | S72: 4.057343004 | T72: 0.6919785142 | U72: 29
B73: 47 | C73: TRUE | D73: =IF($C73,INDEX(tab_data[X],$L$14+$B73),NA()) -> -89.4007 | E73: =IF($C73,INDEX(tab_data[Y],$L$14+$B73),NA()) -> 43.0632 | F73: 0.6309515545 | G73: 0.7626578129 | H73: 60 | J73: 18 | K73: 0.8726444744 | L73: 0.5186275795 | N73: 47 | O73: 0.9245181793 | P73: 0.7381289947 | R73: 47 | S73: 4.030735324 | T73: 0.6918051243 | U73: 29
B74: 48 | C74: TRUE | D74: =IF($C74,INDEX(tab_data[X],$L$14+$B74),NA()) -> -104.8165 | E74: =IF($C74,INDEX(tab_data[Y],$L$14+$B74),NA()) -> 41.1389 | F74: 0.3416968603 | G74: 0.6479536486 | H74: 55 | J74: 7 | K74: 0.8915224534 | L74: 0.5300842861 | N74: 48 | O74: 0.924518154 | P74: 0.7381290505 | R74: 48 | S74: 4.042858335 | T74: 0.6916318536 | U74: 29
B75: 49 | C75: FALSE | D75: =IF($C75,INDEX(tab_data[X],$L$14+$B75),NA()) ->  | E75: =IF($C75,INDEX(tab_data[Y],$L$14+$B75),NA()) ->  | H75: 0 | N75: 49 | O75: 0.9245181945 | P75: 0.7381290856 | R75: 49 | S75: 4.044761708 | T75: 0.6914585829 | U75: 29
B76: 50 | C76: FALSE | D76: =IF($C76,INDEX(tab_data[X],$L$14+$B76),NA()) ->  | E76: =IF($C76,INDEX(tab_data[Y],$L$14+$B76),NA()) ->  | H76: 0 | N76: 50 | O76: 0.9245183915 | P76: 0.7381292496 | R76: 50 | S76: 3.877102341 | T76: 0.6912853718 | U76: 28
B77: 51 | C77: FALSE | D77: =IF($C77,INDEX(tab_data[X],$L$14+$B77),NA()) ->  | E77: =IF($C77,INDEX(tab_data[Y],$L$14+$B77),NA()) ->  | H77: 0 | N77: 51 | O77: 0.9245327143 | P77: 0.7381412659 | R77: 51 | S77: 3.977762005 | T77: 0.6911121607 | U77: 28
B78: 52 | C78: FALSE | D78: =IF($C78,INDEX(tab_data[X],$L$14+$B78),NA()) ->  | E78: =IF($C78,INDEX(tab_data[Y],$L$14+$B78),NA()) ->  | H78: 0 | N78: 52 | O78: 0.9252770146 | P78: 0.7387656182 | R78: 52 | S78: 3.980346583 | T78: 0.6909390092 | U78: 28
B79: 53 | C79: FALSE | D79: =IF($C79,INDEX(tab_data[X],$L$14+$B79),NA()) ->  | E79: =IF($C79,INDEX(tab_data[Y],$L$14+$B79),NA()) ->  | H79: 0 | N79: 53 | O79: 0.9564818624 | P79: 0.7649416521 | R79: 53 | S79: 3.990469559 | T79: 0.6907659173 | U79: 28
B80: 54 | C80: FALSE | D80: =IF($C80,INDEX(tab_data[X],$L$14+$B80),NA()) ->  | E80: =IF($C80,INDEX(tab_data[Y],$L$14+$B80),NA()) ->  | H80: 0 | N80: 54 | O80: 0.9653345064 | P80: 0.7723676478 | R80: 54 | S80: 4.085642823 | T80: 0.690592885 | U80: 28
B81: 55 | C81: FALSE | D81: =IF($C81,INDEX(tab_data[X],$L$14+$B81),NA()) ->  | E81: =IF($C81,INDEX(tab_data[Y],$L$14+$B81),NA()) ->  | H81: 0 | N81: 55 | O81: 0.9656432782 | P81: 0.7726266595 | R81: 55 | S81: 4.081361115 | T81: 0.6904198527 | U81: 28
B82: 56 | C82: FALSE | D82: =IF($C82,INDEX(tab_data[X],$L$14+$B82),NA()) ->  | E82: =IF($C82,INDEX(tab_data[Y],$L$14+$B82),NA()) ->  | H82: 0 | N82: 56 | O82: 0.965709529 | P82: 0.7726822336 | R82: 56 | S82: 4.067568782 | T82: 0.6902468801 | U82: 28
B83: 57 | C83: FALSE | D83: =IF($C83,INDEX(tab_data[X],$L$14+$B83),NA()) ->  | E83: =IF($C83,INDEX(tab_data[Y],$L$14+$B83),NA()) ->  | H83: 0 | N83: 57 | O83: 0.9657113458 | P83: 0.7726837577 | R83: 57 | S83: 4.054033831 | T83: 0.690073967 | U83: 28
B84: 58 | C84: FALSE | D84: =IF($C84,INDEX(tab_data[X],$L$14+$B84),NA()) ->  | E84: =IF($C84,INDEX(tab_data[Y],$L$14+$B84),NA()) ->  | H84: 0 | N84: 58 | O84: 0.965711541 | P84: 0.7726839215 | R84: 58 | S84: 4.055676362 | T84: 0.6899011135 | U84: 28
B85: 59 | C85: FALSE | D85: =IF($C85,INDEX(tab_data[X],$L$14+$B85),NA()) ->  | E85: =IF($C85,INDEX(tab_data[Y],$L$14+$B85),NA()) ->  | H85: 0 | N85: 59 | O85: 0.9657115685 | P85: 0.772683974 | R85: 59 | S85: 4.055052015 | T85: 0.68972826 | U85: 28
B86: 60 | C86: FALSE | D86: =IF($C86,INDEX(tab_data[X],$L$14+$B86),NA()) ->  | E86: =IF($C86,INDEX(tab_data[Y],$L$14+$B86),NA()) ->  | H86: 0 | N86: 60 | O86: 0.9657116845 | P86: 0.7726841954 | R86: 60 | S86: 4.067322528 | T86: 0.6895554662 | U86: 28
B87: 61 | C87: FALSE | D87: =IF($C87,INDEX(tab_data[X],$L$14+$B87),NA()) ->  | E87: =IF($C87,INDEX(tab_data[Y],$L$14+$B87),NA()) ->  | H87: 0 | N87: 61 | O87: 0.9657126912 | P87: 0.772686117 | R87: 61 | S87: 4.066414063 | T87: 0.6893827319 | U87: 28
B88: 62 | C88: FALSE | D88: =IF($C88,INDEX(tab_data[X],$L$14+$B88),NA()) ->  | E88: =IF($C88,INDEX(tab_data[Y],$L$14+$B88),NA()) ->  | H88: 0 | N88: 62 | O88: 0.9657325458 | P88: 0.7727240156 | R88: 62 | S88: 4.108523242 | T88: 0.6892100573 | U88: 28
B89: 63 | C89: FALSE | D89: =IF($C89,INDEX(tab_data[X],$L$14+$B89),NA()) ->  | E89: =IF($C89,INDEX(tab_data[Y],$L$14+$B89),NA()) ->  | H89: 0 | N89: 63 | O89: 0.9664725136 | P89: 0.7741364672 | R89: 63 | S89: 4.128906729 | T89: 0.6890373826 | U89: 28
B90: 64 | C90: FALSE | D90: =IF($C90,INDEX(tab_data[X],$L$14+$B90),NA()) ->  | E90: =IF($C90,INDEX(tab_data[Y],$L$14+$B90),NA()) ->  | H90: 0 | N90: 64 | O90: 0.9838514738 | P90: 0.807309453 | R90: 64 | S90: 4.063659555 | T90: 0.6888647676 | U90: 28
B91: 65 | C91: FALSE | D91: =IF($C91,INDEX(tab_data[X],$L$14+$B91),NA()) ->  | E91: =IF($C91,INDEX(tab_data[Y],$L$14+$B91),NA()) ->  | F91: =(D91-$G$21)/$G$22 ->  | G91: =(E91-$H$21)/$H$22 ->  | H91: 0 | N91: 65 | O91: 0.9992055864 | P91: 0.8366174068 | R91: 65 | S91: 4.219311236 | T91: 0.6886921525 | U91: 28
B92: 66 | C92: FALSE | D92: =IF($C92,INDEX(tab_data[X],$L$14+$B92),NA()) ->  | E92: =IF($C92,INDEX(tab_data[Y],$L$14+$B92),NA()) ->  | H92: 0 | K92: =INDEX($F$27:$F$526,$J92) ->  | L92: =INDEX($G$27:$G$526,$J92) ->  | N92: 66 | O92: 0.9999938831 | P92: 0.8381221089 | R92: 66 | S92: 4.220327236 | T92: 0.6885196567 | U92: 28
B93: 67 | C93: FALSE | D93: =IF($C93,INDEX(tab_data[X],$L$14+$B93),NA()) ->  | E93: =IF($C93,INDEX(tab_data[Y],$L$14+$B93),NA()) ->  | H93: 0 | N93: 67 | O93: 0.9999994077 | P93: 0.8381326541 | R93: 67 | S93: 4.222572039 | T93: 0.6883471608 | U93: 28
B94: 68 | C94: FALSE | D94: =IF($C94,INDEX(tab_data[X],$L$14+$B94),NA()) ->  | E94: =IF($C94,INDEX(tab_data[Y],$L$14+$B94),NA()) ->  | H94: 0 | N94: 68 | O94: 0.9999999957 | P94: 0.8381337766 | R94: 68 | S94: 4.202880973 | T94: 0.6881747246 | U94: 28
B95: 69 | C95: FALSE | D95: =IF($C95,INDEX(tab_data[X],$L$14+$B95),NA()) ->  | E95: =IF($C95,INDEX(tab_data[Y],$L$14+$B95),NA()) ->  | H95: 0 | N95: 69 | O95: 0.9999999999 | P95: 0.8381337846 | R95: 69 | S95: 4.263932163 | T95: 0.6880022883 | U95: 28
B96: 70 | C96: FALSE | D96: =IF($C96,INDEX(tab_data[X],$L$14+$B96),NA()) ->  | E96: =IF($C96,INDEX(tab_data[Y],$L$14+$B96),NA()) ->  | H96: 0 | N96: 70 | O96: 1 | P96: 0.8381337847 | R96: 70 | S96: 4.262429859 | T96: 0.6878299713 | U96: 28
B97: 71 | C97: FALSE | D97: =IF($C97,INDEX(tab_data[X],$L$14+$B97),NA()) ->  | E97: =IF($C97,INDEX(tab_data[Y],$L$14+$B97),NA()) ->  | H97: 0 | N97: 71 | O97: 0.9999999999 | P97: 0.8381337848 | R97: 71 | S97: 4.270157802 | T97: 0.6876576543 | U97: 28
B98: 72 | C98: FALSE | D98: =IF($C98,INDEX(tab_data[X],$L$14+$B98),NA()) ->  | E98: =IF($C98,INDEX(tab_data[Y],$L$14+$B98),NA()) ->  | H98: 0 | N98: 72 | O98: 0.9999999969 | P98: 0.8381337845 | R98: 72 | S98: 4.284232034 | T98: 0.6874853373 | U98: 28
B99: 73 | C99: FALSE | D99: =IF($C99,INDEX(tab_data[X],$L$14+$B99),NA()) ->  | E99: =IF($C99,INDEX(tab_data[Y],$L$14+$B99),NA()) ->  | H99: 0 | N99: 73 | O99: 0.9999999321 | P99: 0.8381337797 | R99: 73 | S99: 4.284336948 | T99: 0.6873131394 | U99: 28
B100: 74 | C100: FALSE | D100: =IF($C100,INDEX(tab_data[X],$L$14+$B100),NA()) ->  | E100: =IF($C100,INDEX(tab_data[Y],$L$14+$B100),NA()) ->  | H100: 0 | N100: 74 | O100: 0.9999926933 | P100: 0.8381332395 | R100: 74 | S100: 4.283548993 | T100: 0.6871409416 | U100: 28
B101: 75 | C101: FALSE | D101: =IF($C101,INDEX(tab_data[X],$L$14+$B101),NA()) ->  | E101: =IF($C101,INDEX(tab_data[Y],$L$14+$B101),NA()) ->  | H101: 0 | N101: 75 | O101: 0.9999002287 | P101: 0.838126339 | R101: 75 | S101: 4.236976586 | T101: 0.6869688034 | U101: 28
B102: 76 | C102: FALSE | D102: =IF($C102,INDEX(tab_data[X],$L$14+$B102),NA()) ->  | E102: =IF($C102,INDEX(tab_data[Y],$L$14+$B102),NA()) ->  | H102: 0 | N102: 76 | O102: 0.9894246765 | P102: 0.8373445608 | R102: 76 | S102: 4.232460013 | T102: 0.6867967248 | U102: 28
B103: 77 | C103: FALSE | D103: =IF($C103,INDEX(tab_data[X],$L$14+$B103),NA()) ->  | E103: =IF($C103,INDEX(tab_data[Y],$L$14+$B103),NA()) ->  | H103: 0 | N103: 77 | O103: 0.9510917702 | P103: 0.834483821 | R103: 77 | S103: 4.231951511 | T103: 0.6866246462 | U103: 28
B104: 78 | C104: FALSE | D104: =IF($C104,INDEX(tab_data[X],$L$14+$B104),NA()) ->  | E104: =IF($C104,INDEX(tab_data[Y],$L$14+$B104),NA()) ->  | H104: 0 | N104: 78 | O104: 0.9468938719 | P104: 0.8341705368 | R104: 78 | S104: 4.234316252 | T104: 0.6864526272 | U104: 28
B105: 79 | C105: FALSE | D105: =IF($C105,INDEX(tab_data[X],$L$14+$B105),NA()) ->  | E105: =IF($C105,INDEX(tab_data[Y],$L$14+$B105),NA()) ->  | H105: 0 | N105: 79 | O105: 0.9467264638 | P105: 0.8341580433 | R105: 79 | S105: 4.265541998 | T105: 0.6862806678 | U105: 28
B106: 80 | C106: FALSE | D106: =IF($C106,INDEX(tab_data[X],$L$14+$B106),NA()) ->  | E106: =IF($C106,INDEX(tab_data[Y],$L$14+$B106),NA()) ->  | H106: 0 | N106: 80 | O106: 0.9467250126 | P106: 0.834157935 | R106: 80 | S106: 4.235032584 | T106: 0.6861087084 | U106: 28
B107: 81 | C107: FALSE | D107: =IF($C107,INDEX(tab_data[X],$L$14+$B107),NA()) ->  | E107: =IF($C107,INDEX(tab_data[Y],$L$14+$B107),NA()) ->  | H107: 0 | N107: 81 | O107: 0.9467247544 | P107: 0.8341579157 | R107: 81 | S107: 4.262909666 | T107: 0.6859368682 | U107: 28
B108: 82 | C108: FALSE | D108: =IF($C108,INDEX(tab_data[X],$L$14+$B108),NA()) ->  | E108: =IF($C108,INDEX(tab_data[Y],$L$14+$B108),NA()) ->  | H108: 0 | N108: 82 | O108: 0.9467247338 | P108: 0.8341579142 | R108: 82 | S108: 4.256608399 | T108: 0.685765028 | U108: 28
B109: 83 | C109: FALSE | D109: =IF($C109,INDEX(tab_data[X],$L$14+$B109),NA()) ->  | E109: =IF($C109,INDEX(tab_data[Y],$L$14+$B109),NA()) ->  | H109: 0 | N109: 83 | O109: 0.9467247334 | P109: 0.8341579141 | R109: 83 | S109: 4.283476385 | T109: 0.6855931878 | U109: 28
B110: 84 | C110: FALSE | D110: =IF($C110,INDEX(tab_data[X],$L$14+$B110),NA()) ->  | E110: =IF($C110,INDEX(tab_data[Y],$L$14+$B110),NA()) ->  | H110: 0 | N110: 84 | O110: 0.9467247317 | P110: 0.8341579134 | R110: 84 | S110: 4.377789946 | T110: 0.6854214668 | U110: 28
B111: 85 | C111: FALSE | D111: =IF($C111,INDEX(tab_data[X],$L$14+$B111),NA()) ->  | E111: =IF($C111,INDEX(tab_data[Y],$L$14+$B111),NA()) ->  | H111: 0 | N111: 85 | O111: 0.9467246666 | P111: 0.834157887 | R111: 85 | S111: 4.234787992 | T111: 0.6852497458 | U111: 28
B112: 86 | C112: FALSE | D112: =IF($C112,INDEX(tab_data[X],$L$14+$B112),NA()) ->  | E112: =IF($C112,INDEX(tab_data[Y],$L$14+$B112),NA()) ->  | H112: 0 | N112: 86 | O112: 0.946723887 | P112: 0.8341575708 | R112: 86 | S112: 4.178501574 | T112: 0.6850780845 | U112: 28
B113: 87 | C113: FALSE | D113: =IF($C113,INDEX(tab_data[X],$L$14+$B113),NA()) ->  | E113: =IF($C113,INDEX(tab_data[Y],$L$14+$B113),NA()) ->  | H113: 0 | N113: 87 | O113: 0.9467004888 | P113: 0.8341480793 | R113: 87 | S113: 4.177101802 | T113: 0.6849064231 | U113: 28
B114: 88 | C114: FALSE | D114: =IF($C114,INDEX(tab_data[X],$L$14+$B114),NA()) ->  | E114: =IF($C114,INDEX(tab_data[Y],$L$14+$B114),NA()) ->  | H114: 0 | N114: 88 | O114: 0.9461846813 | P114: 0.8339388415 | R114: 88 | S114: 4.173133552 | T114: 0.6847348809 | U114: 28
B115: 89 | C115: FALSE | D115: =IF($C115,INDEX(tab_data[X],$L$14+$B115),NA()) ->  | E115: =IF($C115,INDEX(tab_data[Y],$L$14+$B115),NA()) ->  | H115: 0 | N115: 89 | O115: 0.9379983091 | P115: 0.8306180324 | R115: 89 | S115: 4.18914262 | T115: 0.6845633388 | U115: 28
B116: 90 | C116: FALSE | D116: =IF($C116,INDEX(tab_data[X],$L$14+$B116),NA()) ->  | E116: =IF($C116,INDEX(tab_data[Y],$L$14+$B116),NA()) ->  | H116: 0 | N116: 90 | O116: 0.7663737392 | P116: 0.7609983745 | R116: 90 | S116: 4.205338399 | T116: 0.6843917966 | U116: 28
B117: 91 | C117: FALSE | D117: =IF($C117,INDEX(tab_data[X],$L$14+$B117),NA()) ->  | E117: =IF($C117,INDEX(tab_data[Y],$L$14+$B117),NA()) ->  | H117: 0 | N117: 91 | O117: 0.723002929 | P117: 0.7434049672 | R117: 91 | S117: 4.218445562 | T117: 0.6842203736 | U117: 28
B118: 92 | C118: FALSE | D118: =IF($C118,INDEX(tab_data[X],$L$14+$B118),NA()) ->  | E118: =IF($C118,INDEX(tab_data[Y],$L$14+$B118),NA()) ->  | H118: 0 | N118: 92 | O118: 0.7220660263 | P118: 0.7430249118 | R118: 92 | S118: 4.12505665 | T118: 0.6840489507 | U118: 28
B119: 93 | C119: FALSE | D119: =IF($C119,INDEX(tab_data[X],$L$14+$B119),NA()) ->  | E119: =IF($C119,INDEX(tab_data[Y],$L$14+$B119),NA()) ->  | H119: 0 | N119: 93 | O119: 0.7220336791 | P119: 0.7430117901 | R119: 93 | S119: 4.131504829 | T119: 0.6838775873 | U119: 28
B120: 94 | C120: FALSE | D120: =IF($C120,INDEX(tab_data[X],$L$14+$B120),NA()) ->  | E120: =IF($C120,INDEX(tab_data[Y],$L$14+$B120),NA()) ->  | H120: 0 | N120: 94 | O120: 0.7220317039 | P120: 0.7430109889 | R120: 94 | S120: 4.200586397 | T120: 0.6837062836 | U120: 28
B121: 95 | C121: FALSE | D121: =IF($C121,INDEX(tab_data[X],$L$14+$B121),NA()) ->  | E121: =IF($C121,INDEX(tab_data[Y],$L$14+$B121),NA()) ->  | H121: 0 | N121: 95 | O121: 0.7220315916 | P121: 0.7430109434 | R121: 95 | S121: 4.19978284 | T121: 0.6835349798 | U121: 28
B122: 96 | C122: FALSE | D122: =IF($C122,INDEX(tab_data[X],$L$14+$B122),NA()) ->  | E122: =IF($C122,INDEX(tab_data[Y],$L$14+$B122),NA()) ->  | H122: 0 | N122: 96 | O122: 0.7220315639 | P122: 0.7430109322 | R122: 96 | S122: 4.221975192 | T122: 0.6833637357 | U122: 28
B123: 97 | C123: FALSE | D123: =IF($C123,INDEX(tab_data[X],$L$14+$B123),NA()) ->  | E123: =IF($C123,INDEX(tab_data[Y],$L$14+$B123),NA()) ->  | H123: 0 | N123: 97 | O123: 0.7220315638 | P123: 0.7430109322 | R123: 97 | S123: 4.222120479 | T123: 0.6831925511 | U123: 28
B124: 98 | C124: FALSE | D124: =IF($C124,INDEX(tab_data[X],$L$14+$B124),NA()) ->  | E124: =IF($C124,INDEX(tab_data[Y],$L$14+$B124),NA()) ->  | H124: 0 | N124: 98 | O124: 0.7220315445 | P124: 0.7430109364 | R124: 98 | S124: 4.322992095 | T124: 0.6830213666 | U124: 28
B125: 99 | C125: FALSE | D125: =IF($C125,INDEX(tab_data[X],$L$14+$B125),NA()) ->  | E125: =IF($C125,INDEX(tab_data[Y],$L$14+$B125),NA()) ->  | H125: 0 | N125: 99 | O125: 0.7220314569 | P125: 0.7430109553 | R125: 99 | S125: 4.32493189 | T125: 0.6828502417 | U125: 28
B126: 100 | C126: FALSE | D126: =IF($C126,INDEX(tab_data[X],$L$14+$B126),NA()) ->  | E126: =IF($C126,INDEX(tab_data[Y],$L$14+$B126),NA()) ->  | H126: 0 | N126: 100 | O126: 0.7220302875 | P126: 0.7430112075 | R126: 100 | S126: 4.186615005 | T126: 0.6826791763 | U126: 28
B127: 101 | C127: FALSE | D127: =IF($C127,INDEX(tab_data[X],$L$14+$B127),NA()) ->  | E127: =IF($C127,INDEX(tab_data[Y],$L$14+$B127),NA()) ->  | H127: 0 | N127: 101 | O127: 0.7220014494 | P127: 0.7430174282 | R127: 101 | S127: 4.245768249 | T127: 0.6825081706 | U127: 28
B128: 102 | C128: FALSE | D128: =IF($C128,INDEX(tab_data[X],$L$14+$B128),NA()) ->  | E128: =IF($C128,INDEX(tab_data[Y],$L$14+$B128),NA()) ->  | H128: 0 | N128: 102 | O128: 0.7214753 | P128: 0.7431309239 | R128: 102 | S128: 4.224199286 | T128: 0.6823371649 | U128: 27
B129: 103 | C129: FALSE | D129: =IF($C129,INDEX(tab_data[X],$L$14+$B129),NA()) ->  | E129: =IF($C129,INDEX(tab_data[Y],$L$14+$B129),NA()) ->  | H129: 0 | N129: 103 | O129: 0.691514661 | P129: 0.7495937373 | R129: 103 | S129: 4.237638227 | T129: 0.6821662784 | U129: 27
B130: 104 | C130: FALSE | D130: =IF($C130,INDEX(tab_data[X],$L$14+$B130),NA()) ->  | E130: =IF($C130,INDEX(tab_data[Y],$L$14+$B130),NA()) ->  | H130: 0 | N130: 104 | O130: 0.6380666388 | P130: 0.7611230171 | R130: 104 | S130: 4.207653826 | T130: 0.6819953322 | U130: 27
B131: 105 | C131: FALSE | D131: =IF($C131,INDEX(tab_data[X],$L$14+$B131),NA()) ->  | E131: =IF($C131,INDEX(tab_data[Y],$L$14+$B131),NA()) ->  | H131: 0 | N131: 105 | O131: 0.6314600752 | P131: 0.7625481198 | R131: 105 | S131: 4.15955228 | T131: 0.6818245053 | U131: 27
B132: 106 | C132: FALSE | D132: =IF($C132,INDEX(tab_data[X],$L$14+$B132),NA()) ->  | E132: =IF($C132,INDEX(tab_data[Y],$L$14+$B132),NA()) ->  | H132: 0 | N132: 106 | O132: 0.6309577502 | P132: 0.7626564764 | R132: 106 | S132: 4.213360524 | T132: 0.6816536784 | U132: 27
B133: 107 | C133: FALSE | D133: =IF($C133,INDEX(tab_data[X],$L$14+$B133),NA()) ->  | E133: =IF($C133,INDEX(tab_data[Y],$L$14+$B133),NA()) ->  | H133: 0 | N133: 107 | O133: 0.6309519068 | P133: 0.7626577369 | R133: 107 | S133: 4.187730654 | T133: 0.6814829111 | U133: 27
B134: 108 | C134: FALSE | D134: =IF($C134,INDEX(tab_data[X],$L$14+$B134),NA()) ->  | E134: =IF($C134,INDEX(tab_data[Y],$L$14+$B134),NA()) ->  | H134: 0 | N134: 108 | O134: 0.63095158 | P134: 0.7626578074 | R134: 108 | S134: 4.199844889 | T134: 0.6813122034 | U134: 27
B135: 109 | C135: FALSE | D135: =IF($C135,INDEX(tab_data[X],$L$14+$B135),NA()) ->  | E135: =IF($C135,INDEX(tab_data[Y],$L$14+$B135),NA()) ->  | H135: 0 | N135: 109 | O135: 0.6309515582 | P135: 0.7626578121 | R135: 109 | S135: 4.299495069 | T135: 0.6811414957 | U135: 27
B136: 110 | C136: FALSE | D136: =IF($C136,INDEX(tab_data[X],$L$14+$B136),NA()) ->  | E136: =IF($C136,INDEX(tab_data[Y],$L$14+$B136),NA()) ->  | H136: 0 | N136: 110 | O136: 0.6309515551 | P136: 0.7626578127 | R136: 110 | S136: 4.298187671 | T136: 0.6809708476 | U136: 27
B137: 111 | C137: FALSE | D137: =IF($C137,INDEX(tab_data[X],$L$14+$B137),NA()) ->  | E137: =IF($C137,INDEX(tab_data[Y],$L$14+$B137),NA()) ->  | H137: 0 | N137: 111 | O137: 0.6309515542 | P137: 0.7626578125 | R137: 111 | S137: 4.181470551 | T137: 0.6808002591 | U137: 27
B138: 112 | C138: FALSE | D138: =IF($C138,INDEX(tab_data[X],$L$14+$B138),NA()) ->  | E138: =IF($C138,INDEX(tab_data[Y],$L$14+$B138),NA()) ->  | H138: 0 | N138: 112 | O138: 0.6309515539 | P138: 0.7626578122 | R138: 112 | S138: 4.133768357 | T138: 0.6806297302 | U138: 27
B139: 113 | C139: FALSE | D139: =IF($C139,INDEX(tab_data[X],$L$14+$B139),NA()) ->  | E139: =IF($C139,INDEX(tab_data[Y],$L$14+$B139),NA()) ->  | H139: 0 | N139: 113 | O139: 0.6309515513 | P139: 0.7626578094 | R139: 113 | S139: 4.132581135 | T139: 0.6804592013 | U139: 27
B140: 114 | C140: FALSE | D140: =IF($C140,INDEX(tab_data[X],$L$14+$B140),NA()) ->  | E140: =IF($C140,INDEX(tab_data[Y],$L$14+$B140),NA()) ->  | H140: 0 | N140: 114 | O140: 0.6309515042 | P140: 0.762657757 | R140: 114 | S140: 4.110887125 | T140: 0.6802887321 | U140: 27
B141: 115 | C141: FALSE | D141: =IF($C141,INDEX(tab_data[X],$L$14+$B141),NA()) ->  | E141: =IF($C141,INDEX(tab_data[Y],$L$14+$B141),NA()) ->  | H141: 0 | N141: 115 | O141: 0.6309512315 | P141: 0.7626574543 | R141: 115 | S141: 4.073810602 | T141: 0.6801183224 | U141: 27
B142: 116 | C142: FALSE | D142: =IF($C142,INDEX(tab_data[X],$L$14+$B142),NA()) ->  | E142: =IF($C142,INDEX(tab_data[Y],$L$14+$B142),NA()) ->  | H142: 0 | N142: 116 | O142: 0.6309388537 | P142: 0.7626437145 | R142: 116 | S142: 4.161901027 | T142: 0.6799479127 | U142: 27
B143: 117 | C143: FALSE | D143: =IF($C143,INDEX(tab_data[X],$L$14+$B143),NA()) ->  | E143: =IF($C143,INDEX(tab_data[Y],$L$14+$B143),NA()) ->  | H143: 0 | N143: 117 | O143: 0.6303998165 | P143: 0.7620453652 | R143: 117 | S143: 4.187474793 | T143: 0.6797775626 | U143: 27
B144: 118 | C144: FALSE | D144: =IF($C144,INDEX(tab_data[X],$L$14+$B144),NA()) ->  | E144: =IF($C144,INDEX(tab_data[Y],$L$14+$B144),NA()) ->  | H144: 0 | N144: 118 | O144: 0.6156157736 | P144: 0.745634582 | R144: 118 | S144: 4.189428487 | T144: 0.6796072721 | U144: 27
B145: 119 | C145: FALSE | D145: =IF($C145,INDEX(tab_data[X],$L$14+$B145),NA()) ->  | E145: =IF($C145,INDEX(tab_data[Y],$L$14+$B145),NA()) ->  | H145: 0 | N145: 119 | O145: 0.5778061154 | P145: 0.7036645938 | R145: 119 | S145: 4.196427355 | T145: 0.6794370413 | U145: 27
B146: 120 | C146: FALSE | D146: =IF($C146,INDEX(tab_data[X],$L$14+$B146),NA()) ->  | E146: =IF($C146,INDEX(tab_data[Y],$L$14+$B146),NA()) ->  | H146: 0 | N146: 120 | O146: 0.5520694974 | P146: 0.675096085 | R146: 120 | S146: 4.316837645 | T146: 0.6792668104 | U146: 27
B147: 121 | C147: FALSE | D147: =IF($C147,INDEX(tab_data[X],$L$14+$B147),NA()) ->  | E147: =IF($C147,INDEX(tab_data[Y],$L$14+$B147),NA()) ->  | H147: 0 | N147: 121 | O147: 0.551795608 | P147: 0.6747920586 | R147: 121 | S147: 4.319070522 | T147: 0.6790966392 | U147: 27
B148: 122 | C148: FALSE | D148: =IF($C148,INDEX(tab_data[X],$L$14+$B148),NA()) ->  | E148: =IF($C148,INDEX(tab_data[Y],$L$14+$B148),NA()) ->  | H148: 0 | N148: 122 | O148: 0.5517775745 | P148: 0.6747720409 | R148: 122 | S148: 4.318333688 | T148: 0.6789265275 | U148: 27
B149: 123 | C149: FALSE | D149: =IF($C149,INDEX(tab_data[X],$L$14+$B149),NA()) ->  | E149: =IF($C149,INDEX(tab_data[Y],$L$14+$B149),NA()) ->  | H149: 0 | N149: 123 | O149: 0.5517770023 | P149: 0.6747714057 | R149: 123 | S149: 4.437216105 | T149: 0.6787564158 | U149: 27
B150: 124 | C150: FALSE | D150: =IF($C150,INDEX(tab_data[X],$L$14+$B150),NA()) ->  | E150: =IF($C150,INDEX(tab_data[Y],$L$14+$B150),NA()) ->  | H150: 0 | N150: 124 | O150: 0.5517769996 | P150: 0.6747714027 | R150: 124 | S150: 4.437406288 | T150: 0.6785863638 | U150: 27
B151: 125 | C151: FALSE | D151: =IF($C151,INDEX(tab_data[X],$L$14+$B151),NA()) ->  | E151: =IF($C151,INDEX(tab_data[Y],$L$14+$B151),NA()) ->  | H151: 0 | N151: 125 | O151: 0.5517769993 | P151: 0.6747714023 | R151: 125 | S151: 4.45959166 | T151: 0.6784163713 | U151: 27
B152: 126 | C152: FALSE | D152: =IF($C152,INDEX(tab_data[X],$L$14+$B152),NA()) ->  | E152: =IF($C152,INDEX(tab_data[Y],$L$14+$B152),NA()) ->  | H152: 0 | N152: 126 | O152: 0.5517769993 | P152: 0.6747714023 | R152: 126 | S152: 4.436570892 | T152: 0.6782464385 | U152: 27
B153: 127 | C153: FALSE | D153: =IF($C153,INDEX(tab_data[X],$L$14+$B153),NA()) ->  | E153: =IF($C153,INDEX(tab_data[Y],$L$14+$B153),NA()) ->  | H153: 0 | N153: 127 | O153: 0.5517769993 | P153: 0.6747714023 | R153: 127 | S153: 4.398339932 | T153: 0.6780765057 | U153: 27
B154: 128 | C154: FALSE | D154: =IF($C154,INDEX(tab_data[X],$L$14+$B154),NA()) ->  | E154: =IF($C154,INDEX(tab_data[Y],$L$14+$B154),NA()) ->  | H154: 0 | N154: 128 | O154: 0.5517769993 | P154: 0.6747714023 | R154: 128 | S154: 4.360415563 | T154: 0.6779066324 | U154: 27
B155: 129 | C155: FALSE | D155: =IF($C155,INDEX(tab_data[X],$L$14+$B155),NA()) ->  | E155: =IF($C155,INDEX(tab_data[Y],$L$14+$B155),NA()) ->  | F155: =(D155-$G$21)/$G$22 ->  | G155: =(E155-$H$21)/$H$22 ->  | H155: 0 | N155: 129 | O155: 0.5517769993 | P155: 0.6747714023 | R155: 129 | S155: 4.360335217 | T155: 0.6777368188 | U155: 27
B156: 130 | C156: FALSE | D156: =IF($C156,INDEX(tab_data[X],$L$14+$B156),NA()) ->  | E156: =IF($C156,INDEX(tab_data[Y],$L$14+$B156),NA()) ->  | H156: 0 | K156: =INDEX($F$27:$F$526,$J156) ->  | L156: =INDEX($G$27:$G$526,$J156) ->  | N156: 130 | O156: 0.5517769993 | P156: 0.6747714023 | R156: 130 | S156: 4.317024821 | T156: 0.6775670052 | U156: 27
B157: 131 | C157: FALSE | D157: =IF($C157,INDEX(tab_data[X],$L$14+$B157),NA()) ->  | E157: =IF($C157,INDEX(tab_data[Y],$L$14+$B157),NA()) ->  | H157: 0 | N157: 131 | O157: 0.5517769992 | P157: 0.6747714022 | R157: 131 | S157: 4.333677012 | T157: 0.6773973107 | U157: 27
B158: 132 | C158: FALSE | D158: =IF($C158,INDEX(tab_data[X],$L$14+$B158),NA()) ->  | E158: =IF($C158,INDEX(tab_data[Y],$L$14+$B158),NA()) ->  | H158: 0 | N158: 132 | O158: 0.5517769962 | P158: 0.6747713999 | R158: 132 | S158: 4.341677823 | T158: 0.6772275567 | U158: 27
B159: 133 | C159: FALSE | D159: =IF($C159,INDEX(tab_data[X],$L$14+$B159),NA()) ->  | E159: =IF($C159,INDEX(tab_data[Y],$L$14+$B159),NA()) ->  | H159: 0 | N159: 133 | O159: 0.5517767554 | P159: 0.6747712075 | R159: 133 | S159: 4.401615488 | T159: 0.6770579219 | U159: 27
B160: 134 | C160: FALSE | D160: =IF($C160,INDEX(tab_data[X],$L$14+$B160),NA()) ->  | E160: =IF($C160,INDEX(tab_data[Y],$L$14+$B160),NA()) ->  | H160: 0 | N160: 134 | O160: 0.5517714625 | P160: 0.6747669786 | R160: 134 | S160: 4.41421833 | T160: 0.6768882871 | U160: 27
B161: 135 | C161: FALSE | D161: =IF($C161,INDEX(tab_data[X],$L$14+$B161),NA()) ->  | E161: =IF($C161,INDEX(tab_data[Y],$L$14+$B161),NA()) ->  | H161: 0 | N161: 135 | O161: 0.5517086122 | P161: 0.6747167631 | R161: 135 | S161: 4.419786694 | T161: 0.6767187119 | U161: 27
B162: 136 | C162: FALSE | D162: =IF($C162,INDEX(tab_data[X],$L$14+$B162),NA()) ->  | E162: =IF($C162,INDEX(tab_data[Y],$L$14+$B162),NA()) ->  | H162: 0 | N162: 136 | O162: 0.5417740721 | P162: 0.6667793555 | R162: 136 | S162: 4.391452828 | T162: 0.6765491962 | U162: 27
B163: 137 | C163: FALSE | D163: =IF($C163,INDEX(tab_data[X],$L$14+$B163),NA()) ->  | E163: =IF($C163,INDEX(tab_data[Y],$L$14+$B163),NA()) ->  | H163: 0 | N163: 137 | O163: 0.4997972502 | P163: 0.6332411 | R163: 137 | S163: 4.393898663 | T163: 0.6763796806 | U163: 27
B164: 138 | C164: FALSE | D164: =IF($C164,INDEX(tab_data[X],$L$14+$B164),NA()) ->  | E164: =IF($C164,INDEX(tab_data[Y],$L$14+$B164),NA()) ->  | H164: 0 | N164: 138 | O164: 0.4946632185 | P164: 0.6291391585 | R164: 138 | S164: 4.408714254 | T164: 0.6762102842 | U164: 27
B165: 139 | C165: FALSE | D165: =IF($C165,INDEX(tab_data[X],$L$14+$B165),NA()) ->  | E165: =IF($C165,INDEX(tab_data[Y],$L$14+$B165),NA()) ->  | H165: 0 | N165: 139 | O165: 0.4939632003 | P165: 0.6285798644 | R165: 139 | S165: 4.409421528 | T165: 0.6760408282 | U165: 27
B166: 140 | C166: FALSE | D166: =IF($C166,INDEX(tab_data[X],$L$14+$B166),NA()) ->  | E166: =IF($C166,INDEX(tab_data[Y],$L$14+$B166),NA()) ->  | H166: 0 | N166: 140 | O166: 0.4939430071 | P166: 0.6285637306 | R166: 140 | S166: 4.554371127 | T166: 0.6758714914 | U166: 27
B167: 141 | C167: FALSE | D167: =IF($C167,INDEX(tab_data[X],$L$14+$B167),NA()) ->  | E167: =IF($C167,INDEX(tab_data[Y],$L$14+$B167),NA()) ->  | H167: 0 | N167: 141 | O167: 0.4939422108 | P167: 0.6285630944 | R167: 141 | S167: 4.566487828 | T167: 0.6757021546 | U167: 27
B168: 142 | C168: FALSE | D168: =IF($C168,INDEX(tab_data[X],$L$14+$B168),NA()) ->  | E168: =IF($C168,INDEX(tab_data[Y],$L$14+$B168),NA()) ->  | H168: 0 | N168: 142 | O168: 0.4939421972 | P168: 0.6285630835 | R168: 142 | S168: 4.645265454 | T168: 0.6755328774 | U168: 27
B169: 143 | C169: FALSE | D169: =IF($C169,INDEX(tab_data[X],$L$14+$B169),NA()) ->  | E169: =IF($C169,INDEX(tab_data[Y],$L$14+$B169),NA()) ->  | H169: 0 | N169: 143 | O169: 0.4939421971 | P169: 0.6285630834 | R169: 143 | S169: 4.645539246 | T169: 0.6753636599 | U169: 27
B170: 144 | C170: FALSE | D170: =IF($C170,INDEX(tab_data[X],$L$14+$B170),NA()) ->  | E170: =IF($C170,INDEX(tab_data[Y],$L$14+$B170),NA()) ->  | H170: 0 | N170: 144 | O170: 0.4939421971 | P170: 0.6285630834 | R170: 144 | S170: 4.62213788 | T170: 0.6751944423 | U170: 27
B171: 145 | C171: FALSE | D171: =IF($C171,INDEX(tab_data[X],$L$14+$B171),NA()) ->  | E171: =IF($C171,INDEX(tab_data[Y],$L$14+$B171),NA()) ->  | H171: 0 | N171: 145 | O171: 0.4939421971 | P171: 0.6285630834 | R171: 145 | S171: 4.632809749 | T171: 0.6750253439 | U171: 27
B172: 146 | C172: FALSE | D172: =IF($C172,INDEX(tab_data[X],$L$14+$B172),NA()) ->  | E172: =IF($C172,INDEX(tab_data[Y],$L$14+$B172),NA()) ->  | H172: 0 | N172: 146 | O172: 0.4939421971 | P172: 0.6285630834 | R172: 146 | S172: 4.624934549 | T172: 0.6748561859 | U172: 27
B173: 147 | C173: FALSE | D173: =IF($C173,INDEX(tab_data[X],$L$14+$B173),NA()) ->  | E173: =IF($C173,INDEX(tab_data[Y],$L$14+$B173),NA()) ->  | H173: 0 | N173: 147 | O173: 0.4939421971 | P173: 0.6285630834 | R173: 147 | S173: 4.62953259 | T173: 0.6746871471 | U173: 27
B174: 148 | C174: FALSE | D174: =IF($C174,INDEX(tab_data[X],$L$14+$B174),NA()) ->  | E174: =IF($C174,INDEX(tab_data[Y],$L$14+$B174),NA()) ->  | H174: 0 | N174: 148 | O174: 0.4939421971 | P174: 0.6285630834 | R174: 148 | S174: 4.628818266 | T174: 0.6745181084 | U174: 27
B175: 149 | C175: FALSE | D175: =IF($C175,INDEX(tab_data[X],$L$14+$B175),NA()) ->  | E175: =IF($C175,INDEX(tab_data[Y],$L$14+$B175),NA()) ->  | H175: 0 | N175: 149 | O175: 0.4939421971 | P175: 0.6285630834 | R175: 149 | S175: 4.637824321 | T175: 0.6743491292 | U175: 27
B176: 150 | C176: FALSE | D176: =IF($C176,INDEX(tab_data[X],$L$14+$B176),NA()) ->  | E176: =IF($C176,INDEX(tab_data[Y],$L$14+$B176),NA()) ->  | H176: 0 | N176: 150 | O176: 0.4939421971 | P176: 0.6285630834 | R176: 150 | S176: 4.690158851 | T176: 0.6741802096 | U176: 27
B177: 151 | C177: FALSE | D177: =IF($C177,INDEX(tab_data[X],$L$14+$B177),NA()) ->  | E177: =IF($C177,INDEX(tab_data[Y],$L$14+$B177),NA()) ->  | H177: 0 | N177: 151 | O177: 0.4939421971 | P177: 0.6285630835 | R177: 151 | S177: 4.718835118 | T177: 0.6740112901 | U177: 27
B178: 152 | C178: FALSE | D178: =IF($C178,INDEX(tab_data[X],$L$14+$B178),NA()) ->  | E178: =IF($C178,INDEX(tab_data[Y],$L$14+$B178),NA()) ->  | H178: 0 | N178: 152 | O178: 0.4939421978 | P178: 0.6285630859 | R178: 152 | S178: 4.705048294 | T178: 0.6738424301 | U178: 27
B179: 153 | C179: FALSE | D179: =IF($C179,INDEX(tab_data[X],$L$14+$B179),NA()) ->  | E179: =IF($C179,INDEX(tab_data[Y],$L$14+$B179),NA()) ->  | H179: 0 | N179: 153 | O179: 0.4939424821 | P179: 0.6285641223 | R179: 153 | S179: 4.715672553 | T179: 0.6736736298 | U179: 27
B180: 154 | C180: FALSE | D180: =IF($C180,INDEX(tab_data[X],$L$14+$B180),NA()) ->  | E180: =IF($C180,INDEX(tab_data[Y],$L$14+$B180),NA()) ->  | H180: 0 | N180: 154 | O180: 0.4939458236 | P180: 0.6285763037 | R180: 154 | S180: 4.714151231 | T180: 0.673504889 | U180: 27
B181: 155 | C181: FALSE | D181: =IF($C181,INDEX(tab_data[X],$L$14+$B181),NA()) ->  | E181: =IF($C181,INDEX(tab_data[Y],$L$14+$B181),NA()) ->  | H181: 0 | N181: 155 | O181: 0.4939680419 | P181: 0.6286573005 | R181: 155 | S181: 4.61862335 | T181: 0.6733361483 | U181: 26
B182: 156 | C182: FALSE | D182: =IF($C182,INDEX(tab_data[X],$L$14+$B182),NA()) ->  | E182: =IF($C182,INDEX(tab_data[Y],$L$14+$B182),NA()) ->  | H182: 0 | N182: 156 | O182: 0.495107773 | P182: 0.6328121877 | R182: 156 | S182: 4.65194614 | T182: 0.6731674671 | U182: 26
B183: 157 | C183: FALSE | D183: =IF($C183,INDEX(tab_data[X],$L$14+$B183),NA()) ->  | E183: =IF($C183,INDEX(tab_data[Y],$L$14+$B183),NA()) ->  | H183: 0 | N183: 157 | O183: 0.5096833803 | P183: 0.6859475286 | R183: 157 | S183: 4.634507475 | T183: 0.672998786 | U183: 26
B184: 158 | C184: FALSE | D184: =IF($C184,INDEX(tab_data[X],$L$14+$B184),NA()) ->  | E184: =IF($C184,INDEX(tab_data[Y],$L$14+$B184),NA()) ->  | H184: 0 | N184: 158 | O184: 0.5536628994 | P184: 0.8462747593 | R184: 158 | S184: 4.628838342 | T184: 0.672830224 | U184: 26
B185: 159 | C185: FALSE | D185: =IF($C185,INDEX(tab_data[X],$L$14+$B185),NA()) ->  | E185: =IF($C185,INDEX(tab_data[Y],$L$14+$B185),NA()) ->  | H185: 0 | N185: 159 | O185: 0.5610255826 | P185: 0.8731154033 | R185: 159 | S185: 4.617774754 | T185: 0.6726616621 | U185: 26
B186: 160 | C186: FALSE | D186: =IF($C186,INDEX(tab_data[X],$L$14+$B186),NA()) ->  | E186: =IF($C186,INDEX(tab_data[Y],$L$14+$B186),NA()) ->  | H186: 0 | N186: 160 | O186: 0.5614551258 | P186: 0.8746813019 | R186: 160 | S186: 4.592496228 | T186: 0.6724931598 | U186: 26
B187: 161 | C187: FALSE | D187: =IF($C187,INDEX(tab_data[X],$L$14+$B187),NA()) ->  | E187: =IF($C187,INDEX(tab_data[Y],$L$14+$B187),NA()) ->  | H187: 0 | N187: 161 | O187: 0.5614889756 | P187: 0.8748047015 | R187: 161 | S187: 4.674779349 | T187: 0.6723246574 | U187: 26
B188: 162 | C188: FALSE | D188: =IF($C188,INDEX(tab_data[X],$L$14+$B188),NA()) ->  | E188: =IF($C188,INDEX(tab_data[Y],$L$14+$B188),NA()) ->  | H188: 0 | N188: 162 | O188: 0.5614889976 | P188: 0.8748047814 | R188: 162 | S188: 4.666762554 | T188: 0.6721562147 | U188: 26
B189: 163 | C189: FALSE | D189: =IF($C189,INDEX(tab_data[X],$L$14+$B189),NA()) ->  | E189: =IF($C189,INDEX(tab_data[Y],$L$14+$B189),NA()) ->  | H189: 0 | N189: 163 | O189: 0.561488998 | P189: 0.8748047829 | R189: 163 | S189: 4.67974984 | T189: 0.6719878316 | U189: 26
B190: 164 | C190: FALSE | D190: =IF($C190,INDEX(tab_data[X],$L$14+$B190),NA()) ->  | E190: =IF($C190,INDEX(tab_data[Y],$L$14+$B190),NA()) ->  | H190: 0 | N190: 164 | O190: 0.561488998 | P190: 0.874804783 | R190: 164 | S190: 4.680392262 | T190: 0.6718195081 | U190: 26
B191: 165 | C191: FALSE | D191: =IF($C191,INDEX(tab_data[X],$L$14+$B191),NA()) ->  | E191: =IF($C191,INDEX(tab_data[Y],$L$14+$B191),NA()) ->  | H191: 0 | N191: 165 | O191: 0.561488998 | P191: 0.874804783 | R191: 165 | S191: 4.686838358 | T191: 0.6716511846 | U191: 26
B192: 166 | C192: FALSE | D192: =IF($C192,INDEX(tab_data[X],$L$14+$B192),NA()) ->  | E192: =IF($C192,INDEX(tab_data[Y],$L$14+$B192),NA()) ->  | H192: 0 | N192: 166 | O192: 0.561488998 | P192: 0.874804783 | R192: 166 | S192: 4.659953617 | T192: 0.6714829206 | U192: 26
B193: 167 | C193: FALSE | D193: =IF($C193,INDEX(tab_data[X],$L$14+$B193),NA()) ->  | E193: =IF($C193,INDEX(tab_data[Y],$L$14+$B193),NA()) ->  | H193: 0 | N193: 167 | O193: 0.561488998 | P193: 0.874804783 | R193: 167 | S193: 4.658072445 | T193: 0.6713147163 | U193: 26
B194: 168 | C194: FALSE | D194: =IF($C194,INDEX(tab_data[X],$L$14+$B194),NA()) ->  | E194: =IF($C194,INDEX(tab_data[Y],$L$14+$B194),NA()) ->  | H194: 0 | N194: 168 | O194: 0.561488998 | P194: 0.874804783 | R194: 168 | S194: 4.65829713 | T194: 0.671146512 | U194: 26
B195: 169 | C195: FALSE | D195: =IF($C195,INDEX(tab_data[X],$L$14+$B195),NA()) ->  | E195: =IF($C195,INDEX(tab_data[Y],$L$14+$B195),NA()) ->  | H195: 0 | N195: 169 | O195: 0.5614889979 | P195: 0.8748047829 | R195: 169 | S195: 4.665215905 | T195: 0.6709783673 | U195: 26
B196: 170 | C196: FALSE | D196: =IF($C196,INDEX(tab_data[X],$L$14+$B196),NA()) ->  | E196: =IF($C196,INDEX(tab_data[Y],$L$14+$B196),NA()) ->  | H196: 0 | N196: 170 | O196: 0.5614889963 | P196: 0.8748047825 | R196: 170 | S196: 4.669090042 | T196: 0.6708102822 | U196: 26
B197: 171 | C197: FALSE | D197: =IF($C197,INDEX(tab_data[X],$L$14+$B197),NA()) ->  | E197: =IF($C197,INDEX(tab_data[Y],$L$14+$B197),NA()) ->  | H197: 0 | N197: 171 | O197: 0.5614889807 | P197: 0.8748047787 | R197: 171 | S197: 4.669107395 | T197: 0.6706422567 | U197: 26
B198: 172 | C198: FALSE | D198: =IF($C198,INDEX(tab_data[X],$L$14+$B198),NA()) ->  | E198: =IF($C198,INDEX(tab_data[Y],$L$14+$B198),NA()) ->  | H198: 0 | N198: 172 | O198: 0.5614877197 | P198: 0.8748044638 | R198: 172 | S198: 4.626116563 | T198: 0.6704742312 | U198: 26
B199: 173 | C199: FALSE | D199: =IF($C199,INDEX(tab_data[X],$L$14+$B199),NA()) ->  | E199: =IF($C199,INDEX(tab_data[Y],$L$14+$B199),NA()) ->  | H199: 0 | N199: 173 | O199: 0.5614612481 | P199: 0.8747978551 | R199: 173 | S199: 4.668578802 | T199: 0.6703062654 | U199: 26
B200: 174 | C200: FALSE | D200: =IF($C200,INDEX(tab_data[X],$L$14+$B200),NA()) ->  | E200: =IF($C200,INDEX(tab_data[Y],$L$14+$B200),NA()) ->  | H200: 0 | N200: 174 | O200: 0.5606154316 | P200: 0.8745866935 | R200: 174 | S200: 4.729290628 | T200: 0.6701383591 | U200: 26
B201: 175 | C201: FALSE | D201: =IF($C201,INDEX(tab_data[X],$L$14+$B201),NA()) ->  | E201: =IF($C201,INDEX(tab_data[Y],$L$14+$B201),NA()) ->  | H201: 0 | N201: 175 | O201: 0.5428819769 | P201: 0.870159463 | R201: 175 | S201: 4.73988018 | T201: 0.6699704528 | U201: 26
B202: 176 | C202: FALSE | D202: =IF($C202,INDEX(tab_data[X],$L$14+$B202),NA()) ->  | E202: =IF($C202,INDEX(tab_data[Y],$L$14+$B202),NA()) ->  | H202: 0 | N202: 176 | O202: 0.4513740937 | P202: 0.8473141407 | R202: 176 | S202: 4.725038181 | T202: 0.6698026061 | U202: 26
B203: 177 | C203: FALSE | D203: =IF($C203,INDEX(tab_data[X],$L$14+$B203),NA()) ->  | E203: =IF($C203,INDEX(tab_data[Y],$L$14+$B203),NA()) ->  | H203: 0 | N203: 177 | O203: 0.4285102849 | P203: 0.8416060961 | R203: 177 | S203: 4.670906192 | T203: 0.669634819 | U203: 26
B204: 178 | C204: FALSE | D204: =IF($C204,INDEX(tab_data[X],$L$14+$B204),NA()) ->  | E204: =IF($C204,INDEX(tab_data[Y],$L$14+$B204),NA()) ->  | H204: 0 | N204: 178 | O204: 0.4262131412 | P204: 0.8410326047 | R204: 178 | S204: 4.670402357 | T204: 0.669467032 | U204: 26
B205: 179 | C205: FALSE | D205: =IF($C205,INDEX(tab_data[X],$L$14+$B205),NA()) ->  | E205: =IF($C205,INDEX(tab_data[Y],$L$14+$B205),NA()) ->  | H205: 0 | N205: 179 | O205: 0.426113903 | P205: 0.8410078294 | R205: 179 | S205: 4.669873572 | T205: 0.6692993641 | U205: 26
B206: 180 | C206: FALSE | D206: =IF($C206,INDEX(tab_data[X],$L$14+$B206),NA()) ->  | E206: =IF($C206,INDEX(tab_data[Y],$L$14+$B206),NA()) ->  | H206: 0 | N206: 180 | O206: 0.4261114999 | P206: 0.8410072295 | R206: 180 | S206: 4.650439403 | T206: 0.6691316962 | U206: 26
... 2608 more rows
